bitfinex/quotes_BTCUSD_20260126
["timestamp","ask_amount","ask_price","bid_price","bid_amount"]
[1769442932200,0.03,87710.0,87700.0,0.06418446]
[1769442932354,0.22846749,87720.0,87689.0,0.17532]
[1769442932355,0.03,87708.0,87701.0,0.06989152]
[1769442932708,0.03,87708.0,87698.0,0.06193523]
[1769442933252,0.01140081,87713.0,87698.0,0.06193523]
[1769442933253,0.03,87712.0,87698.0,0.06193523]
[1769442933459,0.03,87709.0,87698.0,0.06193523]
[1769442933659,0.05700585,87711.0,87693.0,0.63473071]
[1769442933660,0.03,87705.0,87693.0,0.63473071]
[1769442933859,0.03,87703.0,87693.0,0.69441677]
[1769442934084,0.04140211,87703.0,87694.0,0.24472168]
[1769442934289,0.03,87703.0,87694.0,0.17528]
[1769442934864,0.03,87699.0,87693.0,0.05968606]
[1769442935071,0.03,87699.0,87694.0,0.17528]
[1769442935677,0.03,87699.0,87694.0,0.23496606]
[1769442935882,0.03,87692.0,87685.0,0.63473071]
[1769442936094,0.47992618,87720.0,87677.0,0.04564]
[1769442936095,0.03,87684.0,87677.0,0.04564]
[1769442936301,0.03,87684.0,87678.0,0.17528]
[1769442937127,0.43320516,87719.0,87678.0,0.17528]
[1769442937128,0.03,87683.0,87678.0,0.17528]
[1769442937529,0.47992618,87720.0,87683.0,0.64433071]
[1769442937753,0.0114025,87700.0,87686.0,0.02759374]
[1769442938119,0.03,87703.0,87686.0,0.63473071]
[1769442938346,0.03,87703.0,87688.0,0.02759374]
[1769442938575,0.03,87703.0,87690.0,0.63473071]
[1769442938755,0.03,87703.0,87691.0,0.02759374]
[1769442939255,0.03,87697.0,87680.0,0.02759374]
[1769442939468,0.03,87697.0,87681.0,0.02759374]
[1769442940303,0.49482211,87733.0,87684.0,0.02759374]
[1769442940304,0.03,87696.0,87684.0,0.02759374]
[1769442940508,0.03,87696.0,87685.0,0.02759374]
[1769442940715,0.03,87696.0,87686.0,0.63473071]
[1769442940892,0.03,87696.0,87687.0,0.02759374]
[1769442941120,0.03,87707.0,87687.0,0.02759374]
[1769442941338,0.03,87707.0,87689.0,0.02759374]
[1769442941539,0.08701087,87703.0,87689.0,0.02759374]
[1769442941721,0.03,87700.0,87689.0,0.02759374]
[1769442942104,0.03,87697.0,87689.0,0.02759374]
[1769442943131,0.03,87704.0,87689.0,0.02759374]
[1769442943536,0.03,87699.0,87689.0,0.02759374]
[1769442944162,0.03,87694.0,87679.0,0.63473071]
[1769442944338,0.04140328,87694.0,87680.0,0.02325698]
[1769442944536,0.04140328,87694.0,87681.0,0.17528]
[1769442944537,0.09842163,87692.0,87681.0,0.17528]
[1769442944720,0.03,87686.0,87681.0,0.17528]
[1769442945132,0.03,87686.0,87674.0,0.02325698]
[1769442945355,0.01140393,87689.0,87675.0,0.17528]
[1769442945356,0.03,87683.0,87675.0,0.17528]
[1769442945754,0.03,87683.0,87675.0,0.197372]
[1769442945981,0.03,87683.0,87675.0,0.17528]
[1769442946658,0.06841844,87696.0,87683.0,0.0096]
[1769442946857,0.15340727,87695.0,87683.0,0.0096]
[1769442947063,0.04140315,87695.0,87681.0,0.02325698]
[1769442947276,0.03,87693.0,87681.0,0.02325698]
[1769442948111,0.03,87693.0,87682.0,0.63473071]
[1769442948318,0.0002422,87698.0,87683.0,0.02325698]
[1769442948757,0.0002422,87698.0,87685.0,0.02337573]
[1769442948963,0.0002422,87698.0,87685.0,0.66044312]
[1769442949181,0.0002422,87698.0,87686.0,0.06604431]
[1769442949602,0.03,87697.0,87686.0,0.06604431]
[1769442949856,0.03,87685.0,87679.0,0.17528]
[1769442950284,0.03,87685.0,87661.0,0.04111349]
[1769442950285,0.03,87674.0,87657.0,0.63730008]
[1769442950493,0.03,87671.0,87658.0,0.17528]
[1769442951153,0.02375908,87679.0,87671.0,0.0096]
[1769442951370,0.01140536,87678.0,87671.0,0.0096]
[1769442951582,0.03514381,87664.0,87647.0,0.04564]
[1769442951790,0.03514381,87664.0,87650.0,0.17528]
[1769442951791,0.05375908,87664.0,87650.0,0.17528]
[1769442952216,0.05375908,87664.0,87647.0,0.04564]
[1769442952435,0.03,87662.0,87647.0,0.04564]
[1769442953465,0.03,87661.0,87647.0,0.04564]
[1769442954553,0.05375908,87655.0,87639.0,0.17528]
[1769442955715,0.06844184,87666.0,87641.0,0.02337573]
[1769442955716,0.05375908,87664.0,87641.0,0.02337573]
[1769442955929,0.05375908,87664.0,87650.0,0.63730008]
[1769442955930,0.03,87664.0,87650.0,0.63730008]
[1769442956704,0.02375908,87671.0,87650.0,0.63730008]
[1769442956705,0.03,87663.0,87650.0,0.63730008]
[1769442957122,0.03,87663.0,87652.0,0.63730008]
[1769442957320,0.03,87663.0,87645.0,0.63730008]
[1769442957733,0.01140562,87676.0,87648.0,0.08042175]
[1769442957734,0.03,87662.0,87648.0,0.08042175]
[1769442957944,0.02890289,87676.0,87649.0,0.64870922]
[1769442958135,0.54222523,87700.0,87648.0,0.02337573]
[1769442958136,0.00514381,87670.0,87648.0,0.02337573]
[1769442958366,0.00514381,87666.0,87648.0,0.02337573]
[1769442958511,0.02375908,87665.0,87648.0,0.02337573]
[1769442958886,0.03,87664.0,87649.0,0.63730008]
[1769442959101,0.03,87664.0,87652.0,0.02337573]
[1769442959306,0.03,87664.0,87655.0,0.64870844]
[1769442959512,0.02375908,87684.0,87662.0,0.63730008]
[1769442959713,0.02375908,87684.0,87665.0,0.02337573]
[1769442959932,0.03,87683.0,87668.0,0.63730008]
[1769442960675,0.01654787,87688.0,87668.0,0.63730008]
[1769442960676,0.03,87682.0,87668.0,0.63730008]
[1769442961780,0.03514381,87688.0,87668.0,0.63730008]
[1769442962344,0.03,87686.0,87668.0,0.63730008]
[1769442962785,0.01830726,87700.0,87679.0,0.63730008]
[1769442963001,0.01830726,87700.0,87681.0,0.63730008]
[1769442963194,0.01140276,87698.0,87681.0,0.63730008]
[1769442963397,0.03,87697.0,87681.0,0.63730008]
[1769442963907,0.03,87690.0,87680.0,0.19869573]
[1769442964238,0.03,87690.0,87680.0,0.17532]
[1769442964675,0.03,87679.0,87662.0,0.02337573]
[1769442964879,0.03,87679.0,87663.0,0.17532]
[1769442965307,0.03,87679.0,87664.0,0.63730008]
[1769442965507,0.03,87679.0,87664.0,0.64870727]
[1769442965708,0.03,87691.0,87667.0,0.63730008]
[1769442965913,0.03,87691.0,87671.0,0.01140628]
[1769442966111,0.03,87691.0,87681.0,0.02337573]
[1769442966271,0.02375908,87703.0,87683.0,0.02337573]
[1769442966836,0.03,87702.0,87683.0,0.02337573]
[1769442967370,0.04140224,87702.0,87683.0,0.02337573]
[1769442967570,0.03,87699.0,87683.0,0.02337573]
[1769442967847,0.06516171,87699.0,87682.0,0.17532]
[1769442968051,0.03,87697.0,87682.0,0.17532]
[1769442969001,0.03,87698.0,87682.0,0.17532]
[1769442969211,0.03,87698.0,87683.0,0.63730008]
[1769442969771,0.02366517,87716.0,87698.0,0.01]
[1769442970002,0.03,87715.0,87698.0,0.01]
[1769442971421,0.03,87715.0,87699.0,0.63730008]
[1769442971774,0.04140055,87715.0,87699.0,0.63730008]
[1769442972527,0.03,87715.0,87699.0,0.63730008]
[1769442972739,0.04140055,87715.0,87699.0,0.63730008]
[1769442972943,0.03,87715.0,87699.0,0.63730008]
[1769442973291,0.03,87713.0,87699.0,0.63730008]
[1769442973490,0.03,87711.0,87699.0,0.63730008]
[1769442973686,0.05375908,87711.0,87699.0,0.63730008]
[1769442974136,0.05375908,87711.0,87694.0,0.17532]
[1769442974365,0.03,87711.0,87694.0,0.17532]
[1769442974524,0.01140042,87716.0,87694.0,0.17532]
[1769442974525,0.03,87709.0,87694.0,0.17532]
[1769442974906,0.03,87709.0,87694.0,0.81262008]
[1769442975187,0.03,87709.0,87695.0,0.63730008]
[1769442975365,0.02256293,87729.0,87699.0,0.47945718]
[1769442975658,0.03,87722.0,87700.0,0.64870258]
[1769442975865,0.03,87722.0,87700.0,0.63730008]
[1769442977355,0.03,87722.0,87702.0,0.63730008]
[1769442978148,0.03,87721.0,87702.0,0.63730008]
[1769442978286,0.03,87721.0,87702.0,0.64870232]
[1769442978492,0.03,87721.0,87704.0,0.69430971]
[1769442978685,0.03,87721.0,87706.0,0.66814813]
[1769442978884,0.03,87729.0,87706.0,0.66814813]
[1769442979072,0.06067843,87729.0,87706.0,0.66814813]
[1769442979493,0.03,87725.0,87706.0,0.66814813]
[1769442979729,0.06432602,87723.0,87706.0,0.66814813]
[1769442980477,0.01139964,87722.0,87705.0,0.17528]
[1769442980682,0.03,87719.0,87705.0,0.17528]
[1769442980905,0.03,87719.0,87705.0,0.84342813]
[1769442981104,0.03,87719.0,87705.0,0.17528]
[1769442981321,0.03,87717.0,87706.0,0.17528]
[1769442981583,0.03,87711.0,87706.0,0.17528]
[1769442981802,0.03,87709.0,87706.0,0.17528]
[1769442982000,0.07482224,87721.0,87706.0,0.17528]
[1769442982242,0.01140003,87719.0,87706.0,0.17528]
[1769442982447,0.01140003,87719.0,87690.0,0.49086098]
[1769442982448,0.03703877,87701.0,87650.0,0.2462]
[1769442982644,0.03,87692.0,87683.0,0.04564]
[1769442982885,0.03,87690.0,87673.0,0.66814813]
[1769442983171,0.03,87686.0,87675.0,0.04564]
[1769442983399,0.03,87684.0,87675.0,0.04564]
[1769442983760,0.03,87684.0,87672.0,0.001]
[1769442983761,0.03,87684.0,87676.0,0.17528]
[1769442983958,0.06918988,87682.0,87672.0,0.04664]
[1769442984136,0.06918988,87682.0,87673.0,0.17528]
[1769442984343,0.06918988,87682.0,87675.0,0.001]
[1769442984563,0.06918988,87682.0,87676.0,0.17528]
[1769442984764,0.06918988,87682.0,87675.0,0.001]
[1769442984973,0.06918988,87682.0,87676.0,0.17528]
[1769442985310,0.16761678,87740.0,87664.0,0.01140719]
[1769442985311,0.03,87671.0,87664.0,0.04564]
[1769442985525,0.03,87671.0,87665.0,0.0412]
[1769442986838,0.03,87671.0,87665.0,0.0422]
[1769442987022,0.03,87671.0,87665.0,0.001]
[1769442987173,0.03,87684.0,87666.0,0.17528]
[1769442987384,0.03,87680.0,87666.0,0.17528]
[1769442987586,0.03925849,87675.0,87666.0,0.17528]
[1769442987787,0.03,87674.0,87666.0,0.17528]
[1769442988221,0.03,87674.0,87666.0,0.19751293]
[1769442988447,0.06122647,87717.0,87674.0,0.66814813]
[1769442988762,0.06122647,87717.0,87666.0,0.20891986]
[1769442988763,0.03,87681.0,87672.0,0.17528]
[1769442988962,0.03921153,87676.0,87672.0,0.17528]
[1769442989120,0.06716386,87673.0,87672.0,0.17528]
[1769442989765,0.03,87673.0,87672.0,0.17528]
[1769442990268,0.03,87678.0,87672.0,0.17528]
[1769442991668,0.03,87675.0,87670.0,0.17528]
[1769442991856,0.03,87673.0,87662.0,0.0004093]
[1769442992098,0.00015625,87670.0,87663.0,0.17528]
[1769442992378,0.03383788,87677.0,87664.0,0.17528]
[1769442992379,0.02845404,87677.0,87664.0,0.17528]
[1769442993165,0.03,87676.0,87664.0,0.17528]
[1769442994445,0.02845404,87677.0,87662.0,0.0004093]
[1769442994446,0.03,87673.0,87665.0,0.17528]
[1769442994735,0.03,87673.0,87665.0,0.84342813]
[1769442995253,0.2447,87718.0,87678.0,0.01140536]
[1769442995254,0.0570057,87711.0,87678.0,0.01140536]
[1769442995412,0.02419003,87706.0,87681.0,0.66814813]
[1769442995592,0.03,87701.0,87681.0,0.66814813]
[1769442995789,0.03,87701.0,87687.0,0.66814813]
[1769442995993,0.03,87701.0,87687.0,0.01140419]
[1769442996191,0.66703663,87714.0,87688.0,0.66814813]
[1769442996396,0.02419003,87713.0,87688.0,0.66814813]
[1769442996595,0.02419003,87710.0,87689.0,0.0723994]
[1769442996806,0.03,87707.0,87689.0,0.0723994]
[1769442997010,0.03,87703.0,87689.0,0.0723994]
[1769442997210,0.03,87703.0,87689.0,0.74054753]
[1769442999648,0.03,87703.0,87690.0,0.17528]
[1769442999871,0.03,87703.0,87691.0,0.66814813]
[1769443002301,0.72122666,87703.0,87690.0,0.17528]
[1769443003215,0.03,87702.0,87690.0,0.17528]
[1769443003437,0.03,87702.0,87691.0,0.66814813]
[1769443004229,0.03,87707.0,87691.0,0.66814813]
[1769443005142,0.03,87705.0,87691.0,0.66814813]
[1769443010642,0.03,87705.0,87690.0,0.17528]
[1769443011460,0.03,87702.0,87690.0,0.17528]
[1769443012464,0.03,87704.0,87690.0,0.17528]
[1769443013273,0.03,87704.0,87690.0,0.84836475]
[1769443015723,0.05429052,87710.0,87691.0,0.67308475]
[1769443016047,0.05429052,87710.0,87697.0,0.02278611]
[1769443016048,0.03,87710.0,87697.0,0.02278611]
[1769443016245,0.03,87710.0,87690.0,0.66606764]
[1769443016246,0.03,87710.0,87698.0,0.69587086]
[1769443016549,0.03,87709.0,87699.0,0.24486709]
[1769443017110,0.03713712,87709.0,87699.0,0.17528]
[1769443017311,0.03713712,87707.0,87699.0,0.17528]
[1769443018646,0.03,87698.0,87685.0,0.0001391]
[1769443018983,0.05429052,87698.0,87686.0,0.17528]
[1769443020576,0.03,87706.0,87686.0,0.17528]
[1769443020730,0.05429052,87704.0,87686.0,0.84836475]
[1769443020932,0.05429052,87704.0,87687.0,0.17528]
[1769443020933,0.03,87704.0,87687.0,0.17528]
[1769443021139,0.03,87702.0,87687.0,0.17528]
[1769443021341,0.03,87702.0,87685.0,0.0001391]
[1769443021545,0.47938384,87710.0,87665.0,0.1756111]
[1769443021546,0.03,87694.0,87665.0,0.1756111]
[1769443021744,0.02429052,87686.0,87666.0,0.01756111]
[1769443021961,0.03,87681.0,87666.0,0.01756111]
[1769443022164,0.05429052,87677.0,87666.0,0.01756111]
[1769443022344,0.03,87675.0,87665.0,0.0003311]
[1769443022558,0.03,87673.0,87665.0,0.0003311]
[1769443022757,0.02429052,87674.0,87673.0,0.01]
[1769443023332,0.02429052,87674.0,87645.0,0.0003311]
[1769443023333,0.02429052,87674.0,87662.0,0.17068642]
[1769443023546,0.02429052,87674.0,87662.0,0.17528]
[1769443026267,0.02429052,87674.0,87659.0,0.17528]
[1769443027270,0.01140589,87674.0,87659.0,0.17528]
[1769443027469,0.03,87669.0,87659.0,0.17528]
[1769443028538,0.03,87657.0,87634.0,0.04564]
[1769443028689,0.03,87651.0,87634.0,0.67308475]
[1769443028889,0.05429052,87651.0,87639.0,0.17528]
[1769443029090,0.05429052,87651.0,87634.0,0.67308475]
[1769443029292,0.03,87647.0,87637.0,0.17528]
[1769443029518,0.08923341,87692.0,87637.0,0.17528]
[1769443029519,0.03,87646.0,87637.0,0.17528]
[1769443029791,0.05703437,87667.0,87647.0,0.01]
[1769443029960,0.02429052,87665.0,87647.0,0.01]
[1769443030392,0.01140562,87676.0,87650.0,0.67308475]
[1769443030511,0.03,87669.0,87652.0,0.69587086]
[1769443031354,0.01140497,87681.0,87660.0,0.02278611]
[1769443031554,0.03,87681.0,87661.0,0.69587086]
[1769443031769,0.06569549,87681.0,87661.0,0.69587086]
[1769443032053,0.03,87679.0,87662.0,0.06958709]
[1769443032494,0.03,87673.0,87661.0,0.02278611]
[1769443032707,0.03,87673.0,87662.0,0.67308475]
[1769443032910,0.03,87673.0,87662.0,0.69587086]
[1769443033395,0.03,87672.0,87662.0,0.69587086]
[1769443033605,0.03,87672.0,87662.0,0.67308475]
[1769443033998,0.03,87672.0,87651.0,0.17528]
[1769443034144,0.01140536,87678.0,87651.0,0.17528]
[1769443034145,0.03,87670.0,87652.0,0.67308475]
[1769443034349,0.03,87670.0,87654.0,0.67308475]
[1769443034547,0.03,87670.0,87654.0,0.69587086]
[1769443035394,0.03,87683.0,87660.0,0.01140771]
[1769443035733,0.03,87683.0,87672.0,0.02278611]
[1769443035902,0.02429052,87699.0,87676.0,0.02278611]
[1769443036124,0.02429052,87699.0,87681.0,0.67308475]
[1769443036284,0.02429052,87707.0,87684.0,0.02278611]
[1769443036485,0.03,87704.0,87685.0,0.67308475]
[1769443036693,0.03,87704.0,87687.0,0.67308475]
[1769443036894,0.03,87704.0,87691.0,0.67308475]
[1769443037139,0.03,87704.0,87693.0,0.69587086]
[1769443037343,0.03,87704.0,87692.0,0.02212511]
[1769443037344,0.03,87704.0,87695.0,0.67308475]
[1769443037506,0.03,87703.0,87696.0,0.02278611]
[1769443038173,0.02462162,87715.0,87697.0,0.67308475]
[1769443038347,0.02462162,87715.0,87698.0,0.17532]
[1769443038586,0.03,87714.0,87698.0,0.17532]
[1769443038919,0.03,87714.0,87698.0,0.84587678]
[1769443039607,0.04140068,87714.0,87698.0,0.84587678]
[1769443039809,0.03,87714.0,87698.0,0.84587678]
[1769443041319,0.03,87713.0,87698.0,0.84587678]
[1769443041558,0.03,87703.0,87699.0,0.17532]
[1769443041758,0.05421273,87701.0,87699.0,0.17532]
[1769443041964,0.03,87701.0,87699.0,0.17532]
[1769443042365,0.03,87701.0,87691.0,0.04564]
[1769443042714,0.0114012,87710.0,87691.0,0.04564]
[1769443042715,0.03,87700.0,87691.0,0.04564]
[1769443042920,0.02421273,87706.0,87700.0,0.01]
[1769443043351,0.02421273,87714.0,87700.0,0.01]
[1769443043553,0.02421273,87714.0,87692.0,0.67055678]
[1769443043770,0.01173165,87715.0,87694.0,0.67055678]
[1769443043771,0.03,87713.0,87694.0,0.67055678]
[1769443043979,0.03,87713.0,87697.0,0.02373233]
[1769443044170,0.0003311,87715.0,87713.0,0.01]
[1769443044370,0.0003311,87715.0,87713.0,0.68055678]
[1769443044658,0.0003311,87715.0,87708.0,0.67055678]
[1769443045010,0.03,87724.0,87706.0,0.02373233]
[1769443045221,0.03,87724.0,87710.0,0.02373233]
[1769443045412,0.03,87724.0,87708.0,0.02373233]
[1769443045780,0.03,87724.0,87708.0,0.69428911]
[1769443045781,0.05421273,87724.0,87708.0,0.69428911]
[1769443046003,0.03,87720.0,87708.0,0.69428911]
[1769443046408,0.03,87717.0,87708.0,0.67055678]
[1769443046553,0.03,87717.0,87708.0,0.01805971]
[1769443046750,0.03,87717.0,87707.0,0.17528]
[1769443047573,0.03,87716.0,87707.0,0.17528]
[1769443048458,0.03,87715.0,87707.0,0.17528]
[1769443049315,0.03,87715.0,87707.0,0.67055678]
[1769443049475,0.03,87714.0,87707.0,0.67055678]
[1769443050624,0.03,87718.0,87707.0,0.67055678]
[1769443050979,0.04140016,87718.0,87707.0,0.67055678]
[1769443051181,0.03,87716.0,87707.0,0.67055678]
[1769443051386,0.01140003,87719.0,87707.0,0.67055678]
[1769443051387,0.01140016,87718.0,87707.0,0.67055678]
[1769443051664,0.01140003,87719.0,87707.0,0.67055678]
[1769443051936,0.03,87714.0,87707.0,0.67055678]
[1769443052169,0.05700746,87708.0,87685.0,0.1482]
[1769443052363,0.03,87703.0,87687.0,0.04111349]
[1769443052566,0.02421273,87717.0,87690.0,0.0203432]
[1769443052768,0.02421273,87717.0,87693.0,0.67055678]
[1769443053056,0.08963341,87766.0,87687.0,0.04111349]
[1769443053057,0.02421273,87711.0,87688.0,0.67055678]
[1769443053263,0.02421273,87711.0,87690.0,0.67055678]
[1769443053494,0.05421273,87708.0,87690.0,0.67055678]
[1769443054029,0.03,87706.0,87690.0,0.67055678]
[1769443054258,0.03,87706.0,87692.0,0.04111349]
[1769443054461,0.03,87706.0,87696.0,0.67055678]
[1769443054686,0.02421273,87718.0,87698.0,0.67055678]
[1769443055069,0.02421273,87712.0,87697.0,0.06275838]
[1769443055377,0.03,87711.0,87696.0,0.17524]
[1769443055741,0.06840423,87714.0,87696.0,0.17524]
[1769443055742,0.03,87707.0,87696.0,0.17524]
[1769443055946,0.05421273,87705.0,87696.0,0.17524]
[1769443056417,0.05421273,87705.0,87680.0,0.49078894]
[1769443056418,0.03,87695.0,87674.0,0.02373233]
[1769443056689,0.03,87695.0,87673.0,0.04564]
[1769443056690,0.03,87695.0,87677.0,0.67055678]
[1769443056900,0.03,87695.0,87679.0,0.67055678]
[1769443057291,0.03,87696.0,87679.0,0.67055678]
[1769443057489,0.03,87693.0,87679.0,0.67055678]
[1769443057894,0.03,87693.0,87679.0,0.69428911]
[1769443058213,0.03,87693.0,87679.0,0.76007281]
[1769443058417,0.03,87692.0,87679.0,0.76007281]
[1769443059133,0.03,87692.0,87681.0,0.67055678]
[1769443059555,0.03,87691.0,87681.0,0.67055678]
[1769443059785,0.03,87691.0,87672.0,0.02373233]
[1769443059949,0.03,87689.0,87679.0,0.002]
[1769443060750,0.03,87689.0,87680.0,0.67055678]
[1769443060907,0.03,87697.0,87680.0,0.67055678]
[1769443061326,0.03,87697.0,87680.0,0.69428911]
[1769443061678,0.03,87695.0,87680.0,0.69428911]
[1769443062189,0.03,87695.0,87669.0,0.01140654]
[1769443062190,0.01,87680.0,87667.0,0.02373233]
[1769443062398,0.01,87680.0,87650.0,0.47952549]
[1769443062399,0.02421273,87676.0,87658.0,0.02373233]
[1769443062567,0.03,87668.0,87656.0,0.17524]
[1769443063624,0.02421273,87675.0,87656.0,0.17524]
[1769443063625,0.03,87674.0,87656.0,0.17524]
[1769443063984,0.03,87672.0,87656.0,0.17524]
[1769443064568,0.03,87672.0,87656.0,0.84579678]
[1769443064774,0.03,87672.0,87656.0,0.84779678]
[1769443065021,0.03,87672.0,87656.0,0.87152911]
[1769443065315,0.03,87671.0,87657.0,0.02373233]
[1769443066299,0.03,87670.0,87657.0,0.02373233]
[1769443066499,0.03,87670.0,87659.0,0.02373233]
[1769443067228,0.06663492,87676.0,87659.0,0.02373233]
[1769443067229,0.03,87675.0,87659.0,0.02373233]
[1769443067786,0.07803885,87689.0,87664.0,0.02373233]
[1769443067902,0.06663492,87687.0,87667.0,0.67055678]
[1769443068098,0.06663492,87687.0,87668.0,0.69428911]
[1769443068307,0.17528,87697.0,87670.0,0.47952549]
[1769443068308,0.03,87686.0,87670.0,0.47952549]
[1769443068500,0.17528,87697.0,87673.0,0.67619208]
[1769443068722,0.17528,87697.0,87676.0,0.02442215]
[1769443068958,9.17e-05,87702.0,87680.0,0.67619208]
[1769443069117,9.17e-05,87702.0,87683.0,0.02442215]
[1769443069469,0.03,87701.0,87684.0,0.02790455]
[1769443070455,0.03,87700.0,87684.0,0.02790455]
[1769443070758,0.66134786,87700.0,87684.0,0.02790455]
[1769443072063,0.03,87698.0,87684.0,0.02790455]
[1769443072245,9.17e-05,87702.0,87672.0,0.03240249]
[1769443072246,0.03,87690.0,87672.0,0.03240249]
[1769443072461,0.03,87690.0,87651.0,0.0002518]
[1769443072462,0.03,87683.0,87673.0,0.20768249]
[1769443072782,0.03,87683.0,87675.0,0.03240249]
[1769443073452,0.05701639,87695.0,87676.0,0.03465176]
[1769443073453,0.03,87682.0,87676.0,0.03465176]
[1769443073667,0.63134786,87695.0,87677.0,0.67619208]
[1769443073839,0.63134786,87695.0,87680.0,0.03465176]
[1769443074180,0.69976733,87695.0,87680.0,0.03465176]
[1769443074400,0.63134786,87693.0,87674.0,0.17528]
[1769443074526,0.03,87690.0,87674.0,0.20993176]
[1769443074728,0.66134786,87690.0,87674.0,0.20993176]
[1769443074939,0.03,87680.0,87660.0,0.03465176]
[1769443075140,0.03,87676.0,87660.0,0.03465176]
[1769443075386,0.03,87676.0,87661.0,0.17528]
[1769443075588,0.03,87676.0,87661.0,0.21218102]
[1769443076236,0.03,87675.0,87664.0,0.03690102]
[1769443076400,0.03,87675.0,87666.0,0.03690102]
[1769443076786,0.03861399,87689.0,87669.0,0.67619208]
[1769443077000,0.00854459,87691.0,87670.0,0.03690102]
[1769443077317,0.03,87690.0,87671.0,0.67619208]
[1769443077496,0.03,87690.0,87675.0,0.67619208]
[1769443077698,0.03,87690.0,87677.0,0.03915022]
[1769443078266,0.03,87689.0,87677.0,0.03915022]
[1769443079002,0.03,87687.0,87677.0,0.03915022]
[1769443080160,0.06842185,87692.0,87677.0,0.03915022]
[1769443080161,0.03,87686.0,87677.0,0.03915022]
[1769443080313,0.01140354,87692.0,87661.0,0.17528]
[1769443080314,0.03,87684.0,87667.0,0.67619208]
[1769443080522,0.03,87684.0,87668.0,0.67619208]
[1769443080717,0.01140471,87683.0,87669.0,0.03915022]
[1769443080917,0.03,87680.0,87669.0,0.03915022]
[1769443081636,0.01140302,87696.0,87680.0,0.00311835]
[1769443081862,0.01140302,87696.0,87665.0,0.17528]
[1769443081863,0.0114025,87700.0,87681.0,0.03915022]
[1769443082022,0.03,87697.0,87684.0,0.67619208]
[1769443082216,0.04140289,87697.0,87685.0,0.03915022]
[1769443082424,0.03,87697.0,87685.0,0.03915022]
[1769443082657,0.03,87695.0,87685.0,0.03915022]
[1769443083047,0.03854459,87695.0,87685.0,0.03915022]
[1769443083250,0.03854459,87695.0,87680.0,0.03690129]
[1769443083486,0.03,87693.0,87680.0,0.03690129]
[1769443084105,0.03,87688.0,87660.0,0.47952549]
[1769443084310,0.03,87684.0,87664.0,0.03690129]
[1769443084620,0.03,87684.0,87667.0,0.03690129]
[1769443084621,0.03854459,87684.0,87667.0,0.03690129]
[1769443084821,0.03854459,87684.0,87668.0,0.03690129]
[1769443085030,0.03854459,87684.0,87669.0,0.03690129]
[1769443085750,0.03,87682.0,87669.0,0.03690129]
[1769443086075,0.03,87682.0,87656.0,0.1482]
[1769443086076,0.07148826,87682.0,87656.0,0.1482]
[1769443086426,0.03,87676.0,87659.0,0.03421163]
[1769443086587,0.03,87674.0,87664.0,0.001]
[1769443086995,0.03,87664.0,87651.0,0.0002518]
[1769443087363,0.65732862,87660.0,87651.0,0.0002518]
[1769443087735,0.03,87660.0,87651.0,0.0002518]
[1769443088095,0.18668536,87678.0,87661.0,0.0346521]
[1769443088299,0.03,87675.0,87661.0,0.0346521]
[1769443088692,0.03,87675.0,87662.0,0.0346521]
[1769443088915,0.03,87673.0,87662.0,0.0346521]
[1769443090011,0.03,87672.0,87662.0,0.0346521]
[1769443090385,0.17528,87683.0,87664.0,0.03421153]
[1769443090599,0.17528,87683.0,87672.0,0.03521153]
[1769443090741,0.17528,87683.0,87673.0,0.03421153]
[1769443090947,0.03,87682.0,87673.0,0.03421153]
[1769443091431,0.01140341,87693.0,87662.0,0.01140745]
[1769443091432,0.69976554,87697.0,87675.0,0.02887031]
[1769443092001,0.03,87696.0,87676.0,0.67619208]
[1769443092145,0.03,87696.0,87674.0,0.17532]
[1769443092146,0.09842061,87693.0,87677.0,0.02887031]
[1769443092351,0.03,87689.0,87677.0,0.02887031]
[1769443093410,0.03,87688.0,87677.0,0.02887031]
[1769443093761,0.03,87676.0,87669.0,0.17532]
[1769443093961,0.03,87676.0,87670.0,0.02442215]
[1769443094815,0.01140393,87689.0,87670.0,0.02442215]
[1769443094816,0.03,87675.0,87670.0,0.02442215]
[1769443095049,0.03,87675.0,87672.0,0.02442215]
[1769443095801,0.03,87674.0,87672.0,0.02442215]
[1769443096006,0.62732862,87688.0,87672.0,0.02442215]
[1769443096746,0.62732862,87688.0,87672.0,0.02542215]
[1769443097074,0.03,87687.0,87672.0,0.02542215]
[1769443097194,0.03,87687.0,87672.0,0.02442215]
[1769443097395,0.03,87685.0,87672.0,0.02442215]
[1769443098418,0.03,87686.0,87672.0,0.02442215]
[1769443099967,0.71937039,87683.0,87669.0,0.17532]
[1769443100488,0.03,87683.0,87669.0,0.17532]
[1769443100720,0.03,87683.0,87671.0,0.65931212]
[1769443100968,0.68937039,87696.0,87674.0,0.02280873]
[1769443101194,0.23233406,87698.0,87676.0,0.02280873]
[1769443101195,0.01140354,87692.0,87676.0,0.02280873]
[1769443101408,0.68937039,87690.0,87676.0,0.02280873]
[1769443102085,0.03,87689.0,87676.0,0.02280873]
[1769443102552,0.06842097,87693.0,87676.0,0.02280873]
[1769443102553,9.17e-05,87702.0,87681.0,0.01140497]
[1769443102759,0.01140055,87715.0,87691.0,0.65931212]
[1769443102988,0.03,87720.0,87694.0,0.02394769]
[1769443103200,0.0021046,87719.0,87696.0,0.02394769]
[1769443103405,0.01140003,87719.0,87696.0,0.02394769]
[1769443103536,0.01139834,87732.0,87696.0,0.02394769]
[1769443103729,0.05699304,87730.0,87696.0,0.02394769]
[1769443103951,0.03,87729.0,87698.0,0.65931212]
[1769443104353,0.17528,87731.0,87698.0,0.65931212]
[1769443104354,0.03,87728.0,87698.0,0.65931212]
[1769443104779,0.03,87728.0,87700.0,0.65931212]
[1769443104996,0.04139977,87721.0,87701.0,0.02584747]
[1769443105243,0.03,87721.0,87701.0,0.02584747]